Workbook

Sheet Instructions

Sheet Chaptalizing Juice or Must
B1: CALCULATOR FOR CHAPTALIZING JUICE OR MUST
B2: Version 1.0
B3: © Daniel Pambianchi, 2021
B5: STEP 1. Choose your units
C6: What hydrometer unit are you using: SG or Brix? | D6: SG
C7: What volume unit are you using: L, hL or gal? | D7: gal
B9: STEP 2. Enter your juice information and parameters
C10: Wine identifier | D10: Vintage | E10: Varietal | I10: Batch ID
C12: Hydrometer reading (initial) - adjusted for TEMP: | E12: =D6 -> SG
C13: Actual or estimated juice volume: | E13: =IF(D7="","",D7) -> gal
B15: STEP 3. Enter your target SG or BRIX, or desired PA | E15: =D6 -> SG | H15: SUMMARY | M15: Estimated amount of sugar per volume | P15: Estimated TOTAL amount of sugar in the juice or must
C16: (Enter a value in one box only.) | E16: PA
C17: =IF(AND(D15<>"",D16<>""),CONCATENATE("ERROR: Enter either your target ",D6," or desired PA."),"") ->  | I17: SG | J17: Brix | K17: Est. PA | M17: (g/L) | N17: (g/gal) | P17: kg | R17: lb oz
H18: Measured | I18: =IF(D12="","",IF(D6="SG",D12,ROUND(LOOKUP(D12,'SG-Brix-PA'!B3:B303,'SG-Brix-PA'!C3:C303),4))) ->  | J18: =IF(D12="","",IF(D6="Brix",D12,LOOKUP(D12,'SG-Brix-PA'!C3:C303,'SG-Brix-PA'!B3:B303))) ->  | K18: =IF(J18="","",ROUND(LOOKUP(J18,'SG-Brix-PA'!B3:B303,'SG-Brix-PA'!F3:F303),2)) ->  | M18: =IF(I18="","",ROUND((J18*10),0)) ->  | N18: =IF(M18="","",ROUND((M18*3.79),0)) ->  | P18: =IF(M18="","",IF(D13="","",ROUND((M18*D13*(IF(D7="L",1,(IF(D7="hL",100,3.79))))/1000),2))) ->  | R18: =IF(P18="","",(TRUNC(TRUNC(P18*16000/453.6)/16))) ->  | S18: =IF(P18="","",(P18*16000/453.6-R18*16)) -> 
H19: Target | I19: =IF(OR(AND(D15="",D16=""),C17<>""),"",IF(D15="",ROUND(LOOKUP(D16,'SG-Brix-PA'!F3:F303,'SG-Brix-PA'!C3:C303),4),IF(D6="Brix",ROUND(LOOKUP(D15,'SG-Brix-PA'!B3:B303,'SG-Brix-PA'!C3:C303),4),D15))) ->  | J19: =IF(OR(AND(D15="",D16=""),C17<>""),"",IF(D15="",LOOKUP(D16,'SG-Brix-PA'!F3:F303,'SG-Brix-PA'!B3:B303),IF(D6="SG",LOOKUP(D15,'SG-Brix-PA'!C3:C303,'SG-Brix-PA'!B3:B303),D15))) ->  | K19: =IF(OR(AND(D15="",D16=""),C17<>""),"",IF(D15="",D16,IF(D6="SG",ROUND(LOOKUP(D15,'SG-Brix-PA'!C3:C303,'SG-Brix-PA'!F3:F303),2),ROUND(LOOKUP(D15,'SG-Brix-PA'!B3:B303,'SG-Brix-PA'!F3:F303),2)))) ->  | M19: =IF(I19="","",ROUND((J19*10),0)) ->  | N19: =IF(M19="","",ROUND((M19*3.79),0)) ->  | P19: =IF(M19="","",IF(D13="","",ROUND((M19*D13*(IF(D7="L",1,(IF(D7="hL",100,3.79))))/1000),2))) ->  | R19: =IF(P19="","",(TRUNC(TRUNC(P19*16000/453.6)/16))) ->  | S19: =IF(P19="","",(P19*16000/453.6-R19*16)) -> 
P22: kg | R22: lb oz
I24: Estimated amount of sugar to add | M24: =IF(OR(M18="",M19="",D13=""),"",(M19-M18)) ->  | N24: =IF(OR(N18="",N19="",D13=""),"",(N19-N18)) ->  | P24: =IF(OR(P18="",P19=""),"",ROUND((M24*D13*(IF(D7="L",1,(IF(D7="hL",100,3.79))))/1000),2)) ->  | R24: =IF(P24="","",IF((ROUND((((P24*2.205)-TRUNC(P24*2.205))*16),0))=16,TRUNC(P24*2.205)+1,TRUNC(P24*2.205))) ->  | S24: =IF(P24="","",ROUND((((P24*2.205)-R24)*16),0)) -> 
I26: 50% ADDITION | P26: =IF(P24="","",ROUND((P24/2),3)) ->  | R26: =IF(P26="","",IF((ROUND((((P26*2.205)-TRUNC(P26*2.205))*16),0))=16,TRUNC(P26*2.205)+1,TRUNC(P26*2.205))) ->  | S26: =IF(P26="","",ROUND((((P26*2.205)-R26)*16),0)) -> 
B29: STEP 4. Add HALF the calculated amount in Step 3
C30: Dissolve the sugar in approximately (of juice) | D30: =IF(I19="","",IF(D13="","",IF(OR(D7="L",D7="hL"),IF((ROUND((P26/0.5),0))=0,1,(ROUND((P26/0.5),0))),IF(ROUND((P26/0.5/3.79),0)=0,1,ROUND((P26/0.5/3.79),0))))) ->  | E30: =IF(OR(D7="L",D7="hL"),"L","gal") -> gal
B32: STEP 5. Measure SG/BRIX
C33: Hydrometer reading (after 50% chaptalization): | E33: =IF(D6="","",D6) -> SG | I33: SG | J33: Brix | K33: Est. PA
D34: =IF(D33="","",(IF((AND((D33-1)<1,D6="SG")),(IF(D33>D12,"","ERROR: Invalid entry")),(IF((AND((D33>=0),D6="Brix")),(IF(D33>D12,"","ERROR: Invalid entry")),IF(D33>1.17,"ERROR: Invalid entry","")))))) ->  | H34: Measured | I34: =IF(D33="","",(IF(D34="",(IF(D6="SG",D33,ROUND(LOOKUP(D33,'SG-Brix-PA'!B3:B303,'SG-Brix-PA'!C3:C303),4))),""))) ->  | J34: =IF(D33="","",(IF(D34="",(IF(D6="Brix",D33,LOOKUP(D33,'SG-Brix-PA'!C3:C303,'SG-Brix-PA'!B3:B303))),""))) ->  | K34: =IF(J34="","",(IF(D34="",ROUND(LOOKUP(J34,'SG-Brix-PA'!B3:B303,'SG-Brix-PA'!F3:F303),2),""))) -> 
H35: Expected Increase | I35: =IF(OR(I34="",I18=""),"",IF(I19="","",IF(D13="","",(ROUND(((I19-I18)/2),4))))) ->  | J35: =IF(OR(J34="",J18=""),"",IF(J19="","",IF(D13="","",(ROUND(((J19-J18)/2),2))))) ->  | K35: =IF(OR(K34="",K18=""),"",IF(K19="","",IF(D13="","",(ROUND(((K19-K18)/2),2))))) -> 
H36: Actual Increase | I36: =IF(OR(I34="",I18=""),"",(I34-I18)) ->  | J36: =IF(OR(J34="",J18=""),"",(J34-J18)) ->  | K36: =IF(OR(K34="",K18=""),"",(K34-K18)) -> 
B38: STEP 6. Perform the second addition
C40: Dissolve the sugar in approximately (of juice) | D40: =IF(OR(D33="",D34<>""),"",IF(I19="","",IF(D13="","",IF(OR(D7="L",D7="hL"),IF((ROUND((P42/0.5),0))=0,1,(ROUND((P42/0.5),0))),IF(ROUND((P42/0.5/3.79),0)=0,1,ROUND((P42/0.5/3.79),0)))))) ->  | E40: =IF(OR(D7="L",D7="hL"),"L","gal") -> gal | P40: kg | R40: lb oz
I42: SUGAR TO ADD | P42: =IF(OR(P26="",J34=""),"",ROUND((P26*(J19-J34)/J36),2)) ->  | R42: =IF(P42="","",IF((ROUND((((P42*2.205)-TRUNC(P42*2.205))*16),0))=16,TRUNC(P42*2.205)+1,TRUNC(P42*2.205))) ->  | S42: =IF(P42="","",ROUND((((P42*2.205)-R42)*16),0)) -> 
B46: SUMMARY OF TOTAL ADDITION | I46: TOTAL SUGAR ADDED | P46: =IF(OR(P26="",P42=""),"",P26+P42) ->  | R46: =IF(P46="","",IF((ROUND((((P46*2.205)-TRUNC(P46*2.205))*16),0))=16,TRUNC(P46*2.205)+1,TRUNC(P46*2.205))) ->  | S46: =IF(P46="","",ROUND((((P46*2.205)-R46)*16),0)) -> 
B49: REVISED ESTIMATED TOTAL VOLUME (including volume due to sugar addition) | D49: =IF(OR(D33="",D13=""),"",IF(D34="",(ROUND(((D13*P46/P24)+(IF(E13="L",(P46*0.625),(IF(E13="hL",(P46*0.625/100),(P46*0.625/3.79)))))),1)),"")) ->  | E49: =E13 -> gal
B51: COMMENTS

Sheet SG-Brix-PA (hidden)
D1: Approximate Sugars
B2: °Brix | C2: SG | D2: (g/L) | E2: (g/gal) | F2: PA (% alc/vol)
B3: 0 | C3: =ROUND((265/(265-B3)),3) -> 1 | D3: =B3*10 -> 0 | E3: =D3*3.79 -> 0 | F3: =D3/17.5 -> 0
B4: 0.1 | C4: =ROUND((265/(265-B4)),3) -> 1 | D4: =B4*10 -> 1 | E4: =D4*3.79 -> 3.79 | F4: =D4/17.5 -> 0.05714285714
B5: 0.2 | C5: 1.001 | D5: 2 | E5: 7.58 | F5: 0.1142857143
B6: 0.3 | C6: 1.001 | D6: 3 | E6: 11.37 | F6: 0.1714285714
B7: 0.4 | C7: 1.002 | D7: 4 | E7: 15.16 | F7: 0.2285714286
B8: 0.5 | C8: 1.002 | D8: 5 | E8: 18.95 | F8: 0.2857142857
B9: 0.6 | C9: 1.002 | D9: 6 | E9: 22.74 | F9: 0.3428571429
B10: 0.7 | C10: 1.003 | D10: 7 | E10: 26.53 | F10: 0.4
B11: 0.8 | C11: 1.003 | D11: 8 | E11: 30.32 | F11: 0.4571428571
B12: 0.9 | C12: 1.003 | D12: 9 | E12: 34.11 | F12: 0.5142857143
B13: 1 | C13: 1.004 | D13: 10 | E13: 37.9 | F13: 0.5714285714
B14: 1.1 | C14: 1.004 | D14: 11 | E14: 41.69 | F14: 0.6285714286
B15: 1.2 | C15: 1.005 | D15: 12 | E15: 45.48 | F15: 0.6857142857
B16: 1.3 | C16: 1.005 | D16: 13 | E16: 49.27 | F16: 0.7428571429
B17: 1.4 | C17: 1.005 | D17: 14 | E17: 53.06 | F17: 0.8
B18: 1.5 | C18: 1.006 | D18: 15 | E18: 56.85 | F18: 0.8571428571
B19: 1.6 | C19: 1.006 | D19: 16 | E19: 60.64 | F19: 0.9142857143
B20: 1.7 | C20: 1.006 | D20: 17 | E20: 64.43 | F20: 0.9714285714
B21: 1.8 | C21: 1.007 | D21: 18 | E21: 68.22 | F21: 1.028571429
B22: 1.9 | C22: 1.007 | D22: 19 | E22: 72.01 | F22: 1.085714286
B23: 2 | C23: 1.008 | D23: 20 | E23: 75.8 | F23: 1.142857143
B24: 2.1 | C24: 1.008 | D24: 21 | E24: 79.59 | F24: 1.2
B25: 2.2 | C25: 1.008 | D25: 22 | E25: 83.38 | F25: 1.257142857
B26: 2.3 | C26: 1.009 | D26: 23 | E26: 87.17 | F26: 1.314285714
B27: 2.4 | C27: 1.009 | D27: 24 | E27: 90.96 | F27: 1.371428571
B28: 2.5 | C28: 1.01 | D28: 25 | E28: 94.75 | F28: 1.428571429
B29: 2.6 | C29: 1.01 | D29: 26 | E29: 98.54 | F29: 1.485714286
B30: 2.7 | C30: 1.01 | D30: 27 | E30: 102.33 | F30: 1.542857143
B31: 2.8 | C31: 1.011 | D31: 28 | E31: 106.12 | F31: 1.6
B32: 2.9 | C32: 1.011 | D32: 29 | E32: 109.91 | F32: 1.657142857
B33: 3 | C33: 1.011 | D33: 30 | E33: 113.7 | F33: 1.714285714
B34: 3.1 | C34: 1.012 | D34: 31 | E34: 117.49 | F34: 1.771428571
B35: 3.2 | C35: 1.012 | D35: 32 | E35: 121.28 | F35: 1.828571429
B36: 3.3 | C36: 1.013 | D36: 33 | E36: 125.07 | F36: 1.885714286
B37: 3.4 | C37: 1.013 | D37: 34 | E37: 128.86 | F37: 1.942857143
B38: 3.5 | C38: 1.013 | D38: 35 | E38: 132.65 | F38: 2
B39: 3.6 | C39: 1.014 | D39: 36 | E39: 136.44 | F39: 2.057142857
B40: 3.7 | C40: 1.014 | D40: 37 | E40: 140.23 | F40: 2.114285714
B41: 3.8 | C41: 1.015 | D41: 38 | E41: 144.02 | F41: 2.171428571
B42: 3.9 | C42: 1.015 | D42: 39 | E42: 147.81 | F42: 2.228571429
B43: 4 | C43: 1.015 | D43: 40 | E43: 151.6 | F43: 2.285714286
B44: 4.1 | C44: 1.016 | D44: 41 | E44: 155.39 | F44: 2.342857143
B45: 4.2 | C45: 1.016 | D45: 42 | E45: 159.18 | F45: 2.4
B46: 4.3 | C46: 1.016 | D46: 43 | E46: 162.97 | F46: 2.457142857
B47: 4.4 | C47: 1.017 | D47: 44 | E47: 166.76 | F47: 2.514285714
B48: 4.5 | C48: 1.017 | D48: 45 | E48: 170.55 | F48: 2.571428571
B49: 4.6 | C49: 1.018 | D49: 46 | E49: 174.34 | F49: 2.628571429
B50: 4.7 | C50: 1.018 | D50: 47 | E50: 178.13 | F50: 2.685714286
B51: 4.8 | C51: 1.018 | D51: 48 | E51: 181.92 | F51: 2.742857143
B52: 4.9 | C52: 1.019 | D52: 49 | E52: 185.71 | F52: 2.8
B53: 5 | C53: 1.019 | D53: 50 | E53: 189.5 | F53: 2.857142857
B54: 5.1 | C54: 1.02 | D54: 51 | E54: 193.29 | F54: 2.914285714
B55: 5.2 | C55: 1.02 | D55: 52 | E55: 197.08 | F55: 2.971428571
B56: 5.3 | C56: 1.02 | D56: 53 | E56: 200.87 | F56: 3.028571429
B57: 5.4 | C57: 1.021 | D57: 54 | E57: 204.66 | F57: 3.085714286
B58: 5.5 | C58: 1.021 | D58: 55 | E58: 208.45 | F58: 3.142857143
B59: 5.6 | C59: 1.022 | D59: 56 | E59: 212.24 | F59: 3.2
B60: 5.7 | C60: 1.022 | D60: 57 | E60: 216.03 | F60: 3.257142857
B61: 5.8 | C61: 1.022 | D61: 58 | E61: 219.82 | F61: 3.314285714
B62: 5.9 | C62: 1.023 | D62: 59 | E62: 223.61 | F62: 3.371428571
B63: 6 | C63: 1.023 | D63: 60 | E63: 227.4 | F63: 3.428571429
B64: 6.1 | C64: 1.024 | D64: 61 | E64: 231.19 | F64: 3.485714286
B65: 6.2 | C65: 1.024 | D65: 62 | E65: 234.98 | F65: 3.542857143
B66: 6.3 | C66: 1.024 | D66: 63 | E66: 238.77 | F66: 3.6
B67: 6.4 | C67: 1.025 | D67: 64 | E67: 242.56 | F67: 3.657142857
B68: 6.5 | C68: =ROUND((265/(265-B68)),3) -> 1.025 | D68: =B68*10 -> 65 | E68: =D68*3.79 -> 246.35 | F68: =D68/17.5 -> 3.714285714
B69: 6.6 | C69: 1.026 | D69: 66 | E69: 250.14 | F69: 3.771428571
B70: 6.7 | C70: 1.026 | D70: 67 | E70: 253.93 | F70: 3.828571429
B71: 6.8 | C71: 1.026 | D71: 68 | E71: 257.72 | F71: 3.885714286
B72: 6.9 | C72: 1.027 | D72: 69 | E72: 261.51 | F72: 3.942857143
B73: 7 | C73: 1.027 | D73: 70 | E73: 265.3 | F73: 4
B74: 7.1 | C74: 1.028 | D74: 71 | E74: 269.09 | F74: 4.057142857
B75: 7.2 | C75: 1.028 | D75: 72 | E75: 272.88 | F75: 4.114285714
B76: 7.3 | C76: 1.028 | D76: 73 | E76: 276.67 | F76: 4.171428571
B77: 7.4 | C77: 1.029 | D77: 74 | E77: 280.46 | F77: 4.228571429
B78: 7.5 | C78: 1.029 | D78: 75 | E78: 284.25 | F78: 4.285714286
B79: 7.6 | C79: 1.03 | D79: 76 | E79: 288.04 | F79: 4.342857143
B80: 7.7 | C80: 1.03 | D80: 77 | E80: 291.83 | F80: 4.4
B81: 7.8 | C81: 1.03 | D81: 78 | E81: 295.62 | F81: 4.457142857
B82: 7.9 | C82: 1.031 | D82: 79 | E82: 299.41 | F82: 4.514285714
B83: 8 | C83: 1.031 | D83: 80 | E83: 303.2 | F83: 4.571428571
B84: 8.1 | C84: 1.032 | D84: 81 | E84: 306.99 | F84: 4.628571429
B85: 8.2 | C85: 1.032 | D85: 82 | E85: 310.78 | F85: 4.685714286
B86: 8.3 | C86: 1.032 | D86: 83 | E86: 314.57 | F86: 4.742857143
B87: 8.4 | C87: 1.033 | D87: 84 | E87: 318.36 | F87: 4.8
B88: 8.5 | C88: 1.033 | D88: 85 | E88: 322.15 | F88: 4.857142857
B89: 8.6 | C89: 1.034 | D89: 86 | E89: 325.94 | F89: 4.914285714
B90: 8.7 | C90: 1.034 | D90: 87 | E90: 329.73 | F90: 4.971428571
B91: 8.8 | C91: 1.034 | D91: 88 | E91: 333.52 | F91: 5.028571429
B92: 8.9 | C92: 1.035 | D92: 89 | E92: 337.31 | F92: 5.085714286
B93: 9 | C93: 1.035 | D93: 90 | E93: 341.1 | F93: 5.142857143
B94: 9.1 | C94: 1.036 | D94: 91 | E94: 344.89 | F94: 5.2
B95: 9.2 | C95: 1.036 | D95: 92 | E95: 348.68 | F95: 5.257142857
B96: 9.3 | C96: 1.036 | D96: 93 | E96: 352.47 | F96: 5.314285714
B97: 9.4 | C97: 1.037 | D97: 94 | E97: 356.26 | F97: 5.371428571
B98: 9.5 | C98: 1.037 | D98: 95 | E98: 360.05 | F98: 5.428571429
B99: 9.6 | C99: 1.038 | D99: 96 | E99: 363.84 | F99: 5.485714286
B100: 9.7 | C100: 1.038 | D100: 97 | E100: 367.63 | F100: 5.542857143
B101: 9.8 | C101: 1.038 | D101: 98 | E101: 371.42 | F101: 5.6
B102: 9.9 | C102: 1.039 | D102: 99 | E102: 375.21 | F102: 5.657142857
B103: 10 | C103: 1.0391 | D103: 100 | E103: 379 | F103: 5.714285714
B104: 10.1 | C104: 1.0395 | D104: 101 | E104: 382.79 | F104: 5.771428571
B105: 10.2 | C105: 1.0399 | D105: 102 | E105: 386.58 | F105: 5.828571429
B106: 10.3 | C106: 1.0403 | D106: 103 | E106: 390.37 | F106: 5.885714286
B107: 10.4 | C107: 1.0407 | D107: 104 | E107: 394.16 | F107: 5.942857143
B108: 10.5 | C108: 1.0411 | D108: 105 | E108: 397.95 | F108: 6
B109: 10.6 | C109: 1.0415 | D109: 106 | E109: 401.74 | F109: 6.057142857
B110: 10.7 | C110: 1.0419 | D110: 107 | E110: 405.53 | F110: 6.114285714
B111: 10.8 | C111: 1.0423 | D111: 108 | E111: 409.32 | F111: 6.171428571
B112: 10.9 | C112: 1.0427 | D112: 109 | E112: 413.11 | F112: 6.228571429
B113: 11 | C113: 1.0431 | D113: 110 | E113: 416.9 | F113: 6.285714286
B114: 11.1 | C114: 1.0436 | D114: 111 | E114: 420.69 | F114: 6.342857143
B115: 11.2 | C115: 1.044 | D115: 112 | E115: 424.48 | F115: 6.4
B116: 11.3 | C116: 1.0444 | D116: 113 | E116: 428.27 | F116: 6.457142857
B117: 11.4 | C117: 1.0448 | D117: 114 | E117: 432.06 | F117: 6.514285714
B118: 11.5 | C118: 1.0452 | D118: 115 | E118: 435.85 | F118: 6.571428571
B119: 11.6 | C119: 1.0456 | D119: 116 | E119: 439.64 | F119: 6.628571429
B120: 11.7 | C120: 1.046 | D120: 117 | E120: 443.43 | F120: 6.685714286
B121: 11.8 | C121: 1.0464 | D121: 118 | E121: 447.22 | F121: 6.742857143
B122: 11.9 | C122: 1.0468 | D122: 119 | E122: 451.01 | F122: 6.8
B123: 12 | C123: 1.0472 | D123: 120 | E123: 454.8 | F123: 6.857142857
B124: 12.1 | C124: 1.0477 | D124: 121 | E124: 458.59 | F124: 6.914285714
B125: 12.2 | C125: 1.0481 | D125: 122 | E125: 462.38 | F125: 6.971428571
B126: 12.3 | C126: 1.0485 | D126: 123 | E126: 466.17 | F126: 7.028571429
B127: 12.4 | C127: 1.0489 | D127: 124 | E127: 469.96 | F127: 7.085714286
B128: 12.5 | C128: 1.0493 | D128: 125 | E128: 473.75 | F128: 7.142857143
B129: 12.6 | C129: 1.0497 | D129: 126 | E129: 477.54 | F129: 7.2
B130: 12.7 | C130: 1.0501 | D130: 127 | E130: 481.33 | F130: 7.257142857
B131: 12.8 | C131: 1.0506 | D131: 128 | E131: 485.12 | F131: 7.314285714
B132: 12.9 | C132: 1.051 | D132: =B132*10 -> 129 | E132: =D132*3.79 -> 488.91 | F132: =D132/17.5 -> 7.371428571
B133: 13 | C133: 1.0514 | D133: 130 | E133: 492.7 | F133: 7.428571429
B134: 13.1 | C134: 1.0518 | D134: 131 | E134: 496.49 | F134: 7.485714286
B135: 13.2 | C135: 1.0522 | D135: 132 | E135: 500.28 | F135: 7.542857143
B136: 13.3 | C136: 1.0527 | D136: 133 | E136: 504.07 | F136: 7.6
B137: 13.4 | C137: 1.0531 | D137: 134 | E137: 507.86 | F137: 7.657142857
B138: 13.5 | C138: 1.0535 | D138: 135 | E138: 511.65 | F138: 7.714285714
B139: 13.6 | C139: 1.0539 | D139: 136 | E139: 515.44 | F139: 7.771428571
B140: 13.7 | C140: 1.0543 | D140: 137 | E140: 519.23 | F140: 7.828571429
B141: 13.8 | C141: 1.0548 | D141: 138 | E141: 523.02 | F141: 7.885714286
B142: 13.9 | C142: 1.0552 | D142: 139 | E142: 526.81 | F142: 7.942857143
B143: 14 | C143: 1.0556 | D143: 140 | E143: 530.6 | F143: 8
B144: 14.1 | C144: 1.056 | D144: 141 | E144: 534.39 | F144: 8.057142857
B145: 14.2 | C145: 1.0564 | D145: 142 | E145: 538.18 | F145: 8.114285714
B146: 14.3 | C146: 1.0569 | D146: 143 | E146: 541.97 | F146: 8.171428571
B147: 14.4 | C147: 1.0573 | D147: 144 | E147: 545.76 | F147: 8.228571429
B148: 14.5 | C148: 1.0577 | D148: 145 | E148: 549.55 | F148: 8.285714286
B149: 14.6 | C149: 1.0581 | D149: 146 | E149: 553.34 | F149: 8.342857143
B150: 14.7 | C150: 1.0586 | D150: 147 | E150: 557.13 | F150: 8.4
B151: 14.8 | C151: 1.059 | D151: 148 | E151: 560.92 | F151: 8.457142857
B152: 14.9 | C152: 1.0594 | D152: 149 | E152: 564.71 | F152: 8.514285714
B153: 15 | C153: 1.0598 | D153: 150 | E153: 568.5 | F153: 8.571428571
B154: 15.1 | C154: 1.0603 | D154: 151 | E154: 572.29 | F154: 8.628571429
B155: 15.2 | C155: 1.0607 | D155: 152 | E155: 576.08 | F155: 8.685714286
B156: 15.3 | C156: 1.0611 | D156: 153 | E156: 579.87 | F156: 8.742857143
B157: 15.4 | C157: 1.0616 | D157: 154 | E157: 583.66 | F157: 8.8
B158: 15.5 | C158: 1.062 | D158: 155 | E158: 587.45 | F158: 8.857142857
B159: 15.6 | C159: 1.0624 | D159: 156 | E159: 591.24 | F159: 8.914285714
B160: 15.7 | C160: 1.0628 | D160: 157 | E160: 595.03 | F160: 8.971428571
B161: 15.8 | C161: 1.0633 | D161: 158 | E161: 598.82 | F161: 9.028571429
B162: 15.9 | C162: 1.0637 | D162: 159 | E162: 602.61 | F162: 9.085714286
B163: 16 | C163: 1.0641 | D163: 160 | E163: 606.4 | F163: 9.142857143
B164: 16.1 | C164: 1.0646 | D164: 161 | E164: 610.19 | F164: 9.2
B165: 16.2 | C165: 1.065 | D165: 162 | E165: 613.98 | F165: 9.257142857
B166: 16.3 | C166: 1.0654 | D166: 163 | E166: 617.77 | F166: 9.314285714
B167: 16.4 | C167: 1.0659 | D167: 164 | E167: 621.56 | F167: 9.371428571
B168: 16.5 | C168: 1.0663 | D168: 165 | E168: 625.35 | F168: 9.428571429
B169: 16.6 | C169: 1.0667 | D169: 166 | E169: 629.14 | F169: 9.485714286
B170: 16.7 | C170: 1.0672 | D170: 167 | E170: 632.93 | F170: 9.542857143
B171: 16.8 | C171: 1.0676 | D171: 168 | E171: 636.72 | F171: 9.6
B172: 16.9 | C172: 1.068 | D172: 169 | E172: 640.51 | F172: 9.657142857
B173: 17 | C173: 1.0685 | D173: 170 | E173: 644.3 | F173: 9.714285714
B174: 17.1 | C174: 1.0689 | D174: 171 | E174: 648.09 | F174: 9.771428571
B175: 17.2 | C175: 1.0693 | D175: 172 | E175: 651.88 | F175: 9.828571429
B176: 17.3 | C176: 1.0698 | D176: 173 | E176: 655.67 | F176: 9.885714286
B177: 17.4 | C177: 1.0702 | D177: 174 | E177: 659.46 | F177: 9.942857143
B178: 17.5 | C178: 1.0707 | D178: 175 | E178: 663.25 | F178: 10
B179: 17.6 | C179: 1.0711 | D179: 176 | E179: 667.04 | F179: 10.05714286
B180: 17.7 | C180: 1.0715 | D180: 177 | E180: 670.83 | F180: 10.11428571
B181: 17.8 | C181: 1.072 | D181: 178 | E181: 674.62 | F181: 10.17142857
B182: 17.9 | C182: 1.0724 | D182: 179 | E182: 678.41 | F182: 10.22857143
B183: 18 | C183: 1.0729 | D183: 180 | E183: 682.2 | F183: 10.28571429
B184: 18.1 | C184: 1.0733 | D184: 181 | E184: 685.99 | F184: 10.34285714
B185: 18.2 | C185: 1.0737 | D185: 182 | E185: 689.78 | F185: 10.4
B186: 18.3 | C186: 1.0742 | D186: 183 | E186: 693.57 | F186: 10.45714286
B187: 18.4 | C187: 1.0746 | D187: 184 | E187: 697.36 | F187: 10.51428571
B188: 18.5 | C188: 1.0751 | D188: 185 | E188: 701.15 | F188: 10.57142857
B189: 18.6 | C189: 1.0755 | D189: 186 | E189: 704.94 | F189: 10.62857143
B190: 18.7 | C190: 1.076 | D190: 187 | E190: 708.73 | F190: 10.68571429
B191: 18.8 | C191: 1.0764 | D191: 188 | E191: 712.52 | F191: 10.74285714
B192: 18.9 | C192: 1.0768 | D192: 189 | E192: 716.31 | F192: 10.8
B193: 19 | C193: 1.0773 | D193: 190 | E193: 720.1 | F193: 10.85714286
B194: 19.1 | C194: 1.0777 | D194: 191 | E194: 723.89 | F194: 10.91428571
B195: 19.2 | C195: 1.0782 | D195: 192 | E195: 727.68 | F195: 10.97142857
B196: 19.3 | C196: 1.0786 | D196: =B196*10 -> 193 | E196: =D196*3.79 -> 731.47 | F196: =D196/17.5 -> 11.02857143
B197: 19.4 | C197: 1.0791 | D197: 194 | E197: 735.26 | F197: 11.08571429
B198: 19.5 | C198: 1.0795 | D198: 195 | E198: 739.05 | F198: 11.14285714
B199: 19.6 | C199: 1.08 | D199: 196 | E199: 742.84 | F199: 11.2
B200: 19.7 | C200: 1.0804 | D200: 197 | E200: 746.63 | F200: 11.25714286
... 103 more rows

Sheet List (hidden)
A1: VARIETAL
A2: BLEND
A3: OTHER
A4: Aglianico
A5: Albariño (Alvarinho)
A6: Alicante Bouschet
A7: Aligoté
A8: Auxerrois
A9: Baco Noir
A10: Barbera
A11: Cabernet Franc
A12: Cabernet Sauvignon
A13: Cabernet Severnyi
A14: Carignan
A15: Carménère
A16: Catawba
A17: Cayuga White
A18: Chambourcin
A19: Chancellor
A20: Chardonel
A21: Chardonnay
A22: Chenin Blanc
A23: Cinsault
A24: Colombard
A25: Concord
A26: Corot Noir
A27: De Chaunac
A28: Delaware
A29: Fredonia
A30: Frontenac
A31: Gamay
A32: Gewürztraminer
A33: Grenache
A34: Grenache Gris
A35: Grüner Veltliner
A36: Isabella
A37: La Crescent
A38: La Crosse
A39: Landot Noir
A40: Léon Millot
A41: Malbec
A42: Malvasia
A43: Maréchal Foch
A44: Marquette
A45: Merlot
A46: Mission
A47: Montepulciano d'Abruzzo
A48: Mourvèdre (Monastrell)
A49: Müller-Thurgau
A50: Muscadine
A51: Muscat (Moscato Bianco)
A52: Mustang
A53: Nebbiolo
A54: Nero d'Avola
A55: Niagara
A56: Noiret
A57: Norton (Cynthiana)
A58: Palomino
A59: Petit Verdot
A60: Petite Sirah (Durif)
A61: Pinot Blanc (Pinot Bianco)
A62: Pinot Gris (Pinot Grigio)
A63: Pinot Meunier
A64: Pinot Noir
A65: Pinotage
A66: Regent
A67: Riesling
A68: Ruby Cabernet
A69: Sangiovese
A70: Saperavi
A71: Sauvignon Blanc
A72: Scuppernong
A73: Sémillon
A74: Seyval Blanc
A75: St. Croix
A76: Swenson White
A77: Syrah (Shiraz)
A78: Tempranillo
A79: Thompson Seedless
A80: Touriga Nacional
A81: Traminette
A82: Trebbiano (Ugni Blanc)
A83: Vidal Blanc
A84: Viognier
A85: Zinfandel (Primitivo)
